[Event "*** SCC Grand Prix: Titled Tuesday Blitz"]
[Site "Chess.com"]
[Date "2020.09.08"]
[Round "4"]
[White "kingnb"]
[Black "zajka-molotok"]
[Result "1-0"]
[WhiteElo "2611"]
[BlackElo "2384"]
[TimeControl "180+1"]
[EndTime "10:39:31 PDT"]
[Termination "kingnb won on time"]

1. d4 {[%clk 0:03:00.9]} 1... d5 {[%clk 0:02:59.5]} 2. Nf3 {[%clk 0:03:01.8]}
2... Nf6 {[%clk 0:02:58.6]} 3. e3 {[%clk 0:03:02.7]} 3... Bg4 {[%clk 0:02:52.8]}
4. c4 {[%clk 0:03:02.5]} 4... e6 {[%clk 0:02:51.2]} 5. h3 {[%clk 0:03:02.8]}
5... Bh5 {[%clk 0:02:50.3]} 6. Qb3 {[%clk 0:03:03]} 6... Qc8 {[%clk 0:02:36.1]}
7. Nc3 {[%clk 0:03:00.6]} 7... c6 {[%clk 0:02:35.8]} 8. Bd2 {[%clk 0:03:00]}
8... Bd6 {[%clk 0:02:32.9]} 9. Rc1 {[%clk 0:02:59.4]} 9... O-O {[%clk
0:02:28.7]} 10. Bd3 {[%clk 0:02:59.5]} 10... Nbd7 {[%clk 0:02:22.3]} 11. g4
{[%clk 0:02:34.9]} 11... Bg6 {[%clk 0:02:21.1]} 12. Bxg6 {[%clk 0:02:35.5]}
12... fxg6 {[%clk 0:02:19.5]} 13. cxd5 {[%clk 0:02:34.7]} 13... exd5 {[%clk
0:02:17.6]} 14. g5 {[%clk 0:02:31.9]} 14... Ne8 {[%clk 0:02:08.5]} 15. Nxd5
{[%clk 0:02:32]} 15... Kh8 {[%clk 0:02:01.5]} 16. Ke2 {[%clk 0:02:27.1]} 16...
Nb6 {[%clk 0:01:45.3]} 17. Nxb6 {[%clk 0:02:23.2]} 17... axb6 {[%clk 0:01:42.2]}
18. e4 {[%clk 0:02:22]} 18... b5 {[%clk 0:01:40.1]} 19. h4 {[%clk 0:02:19.8]}
19... Qg4 {[%clk 0:01:37]} 20. Qd3 {[%clk 0:02:19.5]} 20... Nc7 {[%clk
0:01:34.8]} 21. Rcg1 {[%clk 0:02:17.6]} 21... Qh5 {[%clk 0:01:34]} 22. a3 {[%clk
0:02:12.7]} 22... Rae8 {[%clk 0:01:32.7]} 23. Rh3 {[%clk 0:02:08.7]} 23... Nd5
{[%clk 0:01:20.9]} 24. Kd1 {[%clk 0:02:06.8]} 24... Nf4 {[%clk 0:01:13.5]} 25.
Bxf4 {[%clk 0:02:05.3]} 25... Rxf4 {[%clk 0:01:14.3]} 26. e5 {[%clk 0:01:59.7]}
26... Bc7 {[%clk 0:01:07.7]} 27. Kc1 {[%clk 0:01:58.8]} 27... Ref8 {[%clk
0:01:03.5]} 28. e6 {[%clk 0:01:54.1]} 28... Bd6 {[%clk 0:01:00.3]} 29. Ne5
{[%clk 0:01:34.9]} 29... Rxf2 {[%clk 0:00:28.3]} 30. Nf7+ {[%clk 0:01:32.8]}
30... R2xf7 {[%clk 0:00:23.6]} 31. exf7 {[%clk 0:01:33.7]} 31... Rxf7 {[%clk
0:00:24.4]} 32. Re1 {[%clk 0:01:31.1]} 32... Rf8 {[%clk 0:00:23.4]} 33. Kb1
{[%clk 0:01:30.6]} 33... Qg4 {[%clk 0:00:22.3]} 34. Rf1 {[%clk 0:01:27.8]} 34...
Re8 {[%clk 0:00:17.1]} 35. Re3 {[%clk 0:01:24.3]} 35... Rg8 {[%clk 0:00:15.7]}
36. Qe4 {[%clk 0:01:23.2]} 36... Qc8 {[%clk 0:00:09.7]} 37. h5 {[%clk
0:01:23.5]} 37... gxh5 {[%clk 0:00:09.1]} 38. g6 {[%clk 0:01:24.4]} 38... h6
{[%clk 0:00:07.5]} 39. Rf7 {[%clk 0:01:20.6]} 39... Qg4 {[%clk 0:00:02]} 40.
Qxg4 {[%clk 0:01:17.4]} 40... hxg4 {[%clk 0:00:02.9]} 41. Re6 {[%clk 0:01:16.1]}
41... Bb8 {[%clk 0:00:02]} 42. Rxb7 {[%clk 0:01:13.5]} 42... g3 {[%clk
0:00:02.1]} 43. Re2 {[%clk 0:01:14.1]} 43... Rf8 {[%clk 0:00:01.8]} 44. Kc2
{[%clk 0:01:12.3]} 44... h5 {[%clk 0:00:02.2]} 45. Rbe7 {[%clk 0:01:09.3]} 45...
h4 {[%clk 0:00:01.3]} 46. R7e4 {[%clk 0:01:09.4]} 1-0

[Event "*** SCC Grand Prix: Titled Tuesday Blitz"]
[Site "Chess.com"]
[Date "2020.09.08"]
[Round "4"]
[White "Sultanasharminshirin"]
[Black "Kotofeyca"]
[Result "0-1"]
[WhiteElo "2011"]
[BlackElo "2361"]
[TimeControl "180+1"]
[EndTime "10:39:31 PDT"]
[Termination "Kotofeyca won on time"]

1. Nf3 {[%clk 0:03:00.9]} 1... d5 {[%clk 0:02:59.3]} 2. d4 {[%clk 0:03:00.2]}
2... c6 {[%clk 0:02:59.8]} 3. e3 {[%clk 0:02:58.4]} 3... Bg4 {[%clk 0:02:58.6]}
4. b3 {[%clk 0:02:49.7]} 4... Nd7 {[%clk 0:02:57.9]} 5. Bb2 {[%clk 0:02:47.6]}
5... e6 {[%clk 0:02:58.2]} 6. Nbd2 {[%clk 0:02:46.6]} 6... Bd6 {[%clk
0:02:55.7]} 7. Be2 {[%clk 0:02:40.4]} 7... f5 {[%clk 0:02:55.5]} 8. c4 {[%clk
0:02:30.9]} 8... Ngf6 {[%clk 0:02:54.7]} 9. h3 {[%clk 0:02:29.9]} 9... Bh5
{[%clk 0:02:53.3]} 10. Ne5 {[%clk 0:02:19.1]} 10... Bxe2 {[%clk 0:02:52.2]} 11.
Qxe2 {[%clk 0:02:18.7]} 11... O-O {[%clk 0:02:48.7]} 12. O-O {[%clk 0:02:15]}
12... Ne4 {[%clk 0:02:26.5]} 13. Ndf3 {[%clk 0:01:49.6]} 13... f4 {[%clk
0:01:56.5]} 14. cxd5 {[%clk 0:01:43.3]} 14... exd5 {[%clk 0:01:52.6]} 15. exf4
{[%clk 0:01:32.7]} 15... Rxf4 {[%clk 0:01:45.5]} 16. Bc1 {[%clk 0:01:17.9]}
16... Rf8 {[%clk 0:01:38.6]} 17. Qd3 {[%clk 0:01:10.1]} 17... Qe7 {[%clk
0:01:28.8]} 18. Ng4 {[%clk 0:00:54.1]} 18... Rae8 {[%clk 0:01:13.8]} 19. Bb2
{[%clk 0:00:43.7]} 19... Rf5 {[%clk 0:00:56]} 20. Rae1 {[%clk 0:00:29]} 20...
Ref8 {[%clk 0:00:51.2]} 21. Nge5 {[%clk 0:00:21]} 21... Bxe5 {[%clk 0:00:30.3]}
22. dxe5 {[%clk 0:00:11.9]} 22... Rxf3 {[%clk 0:00:29.8]} 23. gxf3 {[%clk
0:00:09.4]} 23... Ng5 {[%clk 0:00:29.6]} 24. f4 {[%clk 0:00:03.3]} 24... Rxf4
{[%clk 0:00:25.7]} 25. Qg3 {[%clk 0:00:02.2]} 25... Ne6 {[%clk 0:00:18.7]} 0-1

[Event "*** SCC Grand Prix: Titled Tuesday Blitz"]
[Site "Chess.com"]
[Date "2020.09.08"]
[Round "4"]
[White "Leonid_Starozhilov"]
[Black "Alexander_Zubov"]
[Result "0-1"]
[WhiteElo "2690"]
[BlackElo "2965"]
[TimeControl "180+1"]
[EndTime "10:39:32 PDT"]
[Termination "Alexander_Zubov won by resignation"]

1. Nf3 {[%clk 0:03:00.9]} 1... Nf6 {[%clk 0:02:59.3]} 2. g3 {[%clk 0:02:59.6]}
2... g6 {[%clk 0:02:58.8]} 3. Bg2 {[%clk 0:03:00.1]} 3... Bg7 {[%clk 0:02:59]}
4. O-O {[%clk 0:03:01]} 4... d5 {[%clk 0:02:58.9]} 5. d4 {[%clk 0:03:00.7]} 5...
c6 {[%clk 0:02:59]} 6. c3 {[%clk 0:03:00.5]} 6... O-O {[%clk 0:02:58.5]} 7. Bf4
{[%clk 0:03:01]} 7... Bf5 {[%clk 0:02:51.1]} 8. Nh4 {[%clk 0:02:37.1]} 8... Bg4
{[%clk 0:02:49.5]} 9. Nd2 {[%clk 0:02:30.1]} 9... Re8 {[%clk 0:02:45.2]} 10. h3
{[%clk 0:02:05.4]} 10... Bc8 {[%clk 0:02:44.8]} 11. Nhf3 {[%clk 0:01:53.4]}
11... Na6 {[%clk 0:02:08.3]} 12. Be5 {[%clk 0:01:49.3]} 12... c5 {[%clk
0:02:05.4]} 13. Nb3 {[%clk 0:01:32.7]} 13... b6 {[%clk 0:02:04.6]} 14. Rc1
{[%clk 0:01:17.7]} 14... Bb7 {[%clk 0:02:03.8]} 15. e3 {[%clk 0:01:12.6]} 15...
Rc8 {[%clk 0:01:59.4]} 16. Nbd2 {[%clk 0:01:10.2]} 16... Nb8 {[%clk 0:01:57.1]}
17. Bxb8 {[%clk 0:01:06.8]} 17... Rxb8 {[%clk 0:01:56.7]} 18. Ne5 {[%clk
0:01:07.7]} 18... Qd6 {[%clk 0:01:49.4]} 19. f4 {[%clk 0:00:53.7]} 19... a5
{[%clk 0:01:44.8]} 20. Kh2 {[%clk 0:00:52.9]} 20... Ba6 {[%clk 0:01:42.7]} 21.
Re1 {[%clk 0:00:42.2]} 21... Red8 {[%clk 0:01:38.3]} 22. Ndf3 {[%clk 0:00:32.2]}
22... Ne4 {[%clk 0:01:35.9]} 23. Qc2 {[%clk 0:00:21.8]} 23... f6 {[%clk
0:01:33.1]} 24. Ng4 {[%clk 0:00:18.9]} 24... Qc7 {[%clk 0:01:26.9]} 25. Nf2
{[%clk 0:00:16.4]} 25... Nd6 {[%clk 0:01:26.2]} 26. h4 {[%clk 0:00:12.2]} 26...
Bc8 {[%clk 0:01:24.4]} 27. Qe2 {[%clk 0:00:09.7]} 27... h5 {[%clk 0:01:17.8]}
28. Bh3 {[%clk 0:00:09]} 28... Bxh3 {[%clk 0:01:17.2]} 29. Kxh3 {[%clk
0:00:09.5]} 29... Qc6 {[%clk 0:00:59.8]} 30. Kg2 {[%clk 0:00:08.8]} 30... Rbc8
{[%clk 0:00:58.5]} 31. g4 {[%clk 0:00:08.7]} 31... hxg4 {[%clk 0:00:57.8]} 32.
Nxg4 {[%clk 0:00:09.6]} 32... Qd7 {[%clk 0:00:54.9]} 33. Nfh2 {[%clk 0:00:07.4]}
33... Kf7 {[%clk 0:00:53.7]} 34. Rh1 {[%clk 0:00:05.3]} 34... Rh8 {[%clk
0:00:53]} 35. Nf1 {[%clk 0:00:05.6]} 35... Rh7 {[%clk 0:00:49.8]} 36. Nf2 {[%clk
0:00:03.7]} 36... Rch8 {[%clk 0:00:48.4]} 37. Qf3 {[%clk 0:00:03.3]} 37... Nf5
{[%clk 0:00:46.7]} 38. h5 {[%clk 0:00:01.8]} 38... Rxh5 {[%clk 0:00:45.5]} 39.
Rxh5 {[%clk 0:00:02]} 39... Rxh5 {[%clk 0:00:46.1]} 40. Nd2 {[%clk 0:00:02.1]}
40... Nh4+ {[%clk 0:00:45.4]} 0-1

[Event "*** SCC Grand Prix: Titled Tuesday Blitz"]
[Site "Chess.com"]
[Date "2020.09.08"]
[Round "4"]
[White "Mr_Sinigami"]
[Black "AnishOnYoutube"]
[Result "0-1"]
[WhiteElo "2545"]
[BlackElo "2941"]
[TimeControl "180+1"]
[EndTime "10:39:32 PDT"]
[Termination "AnishOnYoutube won on time"]

1. d4 {[%clk 0:03:00.9]} 1... Nf6 {[%clk 0:02:59.3]} 2. Nf3 {[%clk 0:03:01]}
2... d5 {[%clk 0:02:59]} 3. Bf4 {[%clk 0:03:01.1]} 3... Bf5 {[%clk 0:02:57.6]}
4. e3 {[%clk 0:03:00.4]} 4... e6 {[%clk 0:02:58]} 5. Be2 {[%clk 0:02:56.4]} 5...
Bd6 {[%clk 0:02:56.6]} 6. Bg3 {[%clk 0:02:55.8]} 6... O-O {[%clk 0:02:56.3]} 7.
O-O {[%clk 0:02:55.3]} 7... c5 {[%clk 0:02:55.7]} 8. dxc5 {[%clk 0:02:46.7]}
8... Bxc5 {[%clk 0:02:55.4]} 9. c4 {[%clk 0:02:46.6]} 9... Nc6 {[%clk
0:02:49.9]} 10. Nc3 {[%clk 0:02:44.2]} 10... dxc4 {[%clk 0:02:49.8]} 11. Bxc4
{[%clk 0:02:40.5]} 11... a6 {[%clk 0:02:49.4]} 12. a3 {[%clk 0:02:29.7]} 12...
b5 {[%clk 0:02:47]} 13. Be2 {[%clk 0:02:28.4]} 13... Qe7 {[%clk 0:02:46.4]} 14.
Ne5 {[%clk 0:02:18.5]} 14... Nxe5 {[%clk 0:02:44.4]} 15. Bxe5 {[%clk 0:02:19.4]}
15... Rfd8 {[%clk 0:02:44.5]} 16. Qc1 {[%clk 0:02:19.1]} 16... Rac8 {[%clk
0:02:41.9]} 17. Rd1 {[%clk 0:02:17.9]} 17... Nd7 {[%clk 0:02:24]} 18. Bg3 {[%clk
0:02:13.7]} 18... h6 {[%clk 0:02:13.1]} 19. Bf3 {[%clk 0:02:09.2]} 19... Nb6
{[%clk 0:02:00.1]} 20. Rxd8+ {[%clk 0:01:39.8]} 20... Rxd8 {[%clk 0:01:58.2]}
21. Ne4 {[%clk 0:01:39.4]} 21... Bxe4 {[%clk 0:01:50.1]} 22. Bxe4 {[%clk
0:01:39]} 22... Nc4 {[%clk 0:01:49.7]} 23. Qc3 {[%clk 0:01:14.5]} 23... Qd7
{[%clk 0:01:30.6]} 24. h3 {[%clk 0:01:11.1]} 24... Be7 {[%clk 0:01:27.4]} 25.
Qc2 {[%clk 0:00:55.6]} 25... Bf6 {[%clk 0:01:25]} 26. Rb1 {[%clk 0:00:44.9]}
26... Qd2 {[%clk 0:01:20.8]} 27. a4 {[%clk 0:00:44.6]} 27... Qxc2 {[%clk
0:01:05.8]} 28. Bxc2 {[%clk 0:00:44.1]} 28... Nxb2 {[%clk 0:01:04.7]} 29. axb5
{[%clk 0:00:43.4]} 29... axb5 {[%clk 0:01:05.1]} 30. f3 {[%clk 0:00:20.1]} 30...
b4 {[%clk 0:00:50.4]} 31. Be1 {[%clk 0:00:17]} 31... Bc3 {[%clk 0:00:51]} 32.
Kf1 {[%clk 0:00:16.2]} 32... Nc4 {[%clk 0:00:48.7]} 33. Bb3 {[%clk 0:00:05.5]}
33... Nxe3+ {[%clk 0:00:47.1]} 34. Kf2 {[%clk 0:00:05.8]} 34... Nf5 {[%clk
0:00:44.7]} 35. Bxc3 {[%clk 0:00:05.3]} 35... bxc3 {[%clk 0:00:45.6]} 36. Rc1
{[%clk 0:00:05.4]} 36... Rd2+ {[%clk 0:00:42.3]} 37. Kg1 {[%clk 0:00:05.5]}
37... Nd4 {[%clk 0:00:41.6]} 0-1

[Event "*** SCC Grand Prix: Titled Tuesday Blitz"]
[Site "Chess.com"]
[Date "2020.09.08"]
[Round "4"]
[White "LubovMarkelova"]
[Black "ChessicallyInclined"]
[Result "1/2-1/2"]
[WhiteElo "2224"]
[BlackElo "2561"]
[TimeControl "180+1"]
[EndTime "10:39:34 PDT"]
[Termination "Game drawn by repetition"]

1. Nf3 {[%clk 0:03:00.9]} 1... Nf6 {[%clk 0:02:59.7]} 2. c4 {[%clk 0:02:59.7]}
2... b6 {[%clk 0:02:59.8]} 3. Nc3 {[%clk 0:02:59.8]} 3... Bb7 {[%clk 0:02:59.8]}
4. g3 {[%clk 0:03:00.5]} 4... g6 {[%clk 0:02:59.4]} 5. Bg2 {[%clk 0:03:00.9]}
5... Bg7 {[%clk 0:03:00]} 6. O-O {[%clk 0:03:01.4]} 6... O-O {[%clk 0:03:00.6]}
7. Re1 {[%clk 0:02:57.9]} 7... c5 {[%clk 0:02:56.6]} 8. e4 {[%clk 0:02:58.1]}
8... Nc6 {[%clk 0:02:54.7]} 9. d4 {[%clk 0:02:51.6]} 9... cxd4 {[%clk
0:02:49.7]} 10. Nxd4 {[%clk 0:02:49.6]} 10... Rc8 {[%clk 0:02:37.9]} 11. Ndb5
{[%clk 0:02:36.3]} 11... a6 {[%clk 0:02:34.5]} 12. Na3 {[%clk 0:02:22.2]} 12...
Na5 {[%clk 0:02:28.2]} 13. Be3 {[%clk 0:02:06.3]} 13... Nxc4 {[%clk 0:02:23.3]}
14. Nxc4 {[%clk 0:02:06.5]} 14... Rxc4 {[%clk 0:02:24.2]} 15. e5 {[%clk
0:02:07]} 15... Ne4 {[%clk 0:01:49]} 16. Qd3 {[%clk 0:02:05.9]} 16... Rxc3
{[%clk 0:01:39.6]} 17. bxc3 {[%clk 0:02:03.6]} 17... Nc5 {[%clk 0:01:38.6]} 18.
Bxc5 {[%clk 0:02:00.2]} 18... Bxg2 {[%clk 0:01:38.7]} 19. Bxe7 {[%clk 0:01:45]}
19... Qa8 {[%clk 0:01:24.3]} 20. Bxf8 {[%clk 0:01:40.9]} 20... Bxf8 {[%clk
0:01:24.7]} 21. Re3 {[%clk 0:01:08.5]} 21... Bc5 {[%clk 0:01:15.5]} 22. Rd1
{[%clk 0:01:07.5]} 22... Bh1 {[%clk 0:00:51.5]} 23. Kf1 {[%clk 0:00:57.9]} 23...
Qg2+ {[%clk 0:00:41.9]} 24. Ke2 {[%clk 0:00:58]} 24... Qxh2 {[%clk 0:00:39.5]}
25. Qxd7 {[%clk 0:00:50.4]} 25... Qh5+ {[%clk 0:00:16.1]} 26. Ke1 {[%clk
0:00:45.9]} 26... Bxe3 {[%clk 0:00:13.4]} 27. Qd8+ {[%clk 0:00:45.1]} 27... Kg7
{[%clk 0:00:12.5]} 28. Qf6+ {[%clk 0:00:44.7]} 28... Kh6 {[%clk 0:00:12.8]} 29.
fxe3 {[%clk 0:00:42]} 29... Bf3 {[%clk 0:00:13]} 30. Qf4+ {[%clk 0:00:39.4]}
30... Kg7 {[%clk 0:00:12.4]} 31. Qf6+ {[%clk 0:00:30.8]} 31... Kh6 {[%clk
0:00:12.4]} 32. Qf4+ {[%clk 0:00:13.4]} 32... Kg7 {[%clk 0:00:12.3]} 33. Qf6+
{[%clk 0:00:12.5]} 33... Kh6 {[%clk 0:00:12.1]} 1/2-1/2

[Event "*** SCC Grand Prix: Titled Tuesday Blitz"]
[Site "Chess.com"]
[Date "2020.09.08"]
[Round "4"]
[White "Sychev_Klementy"]
[Black "albano87"]
[Result "0-1"]
[WhiteElo "2846"]
[BlackElo "2547"]
[TimeControl "180+1"]
[EndTime "10:39:35 PDT"]
[Termination "albano87 won by checkmate"]

1. e4 {[%clk 0:03:00.9]} 1... c5 {[%clk 0:03:00.3]} 2. Nf3 {[%clk 0:03:01]} 2...
Nc6 {[%clk 0:03:00.7]} 3. d4 {[%clk 0:03:01.1]} 3... cxd4 {[%clk 0:03:01.6]} 4.
Nxd4 {[%clk 0:03:01.8]} 4... Nf6 {[%clk 0:03:02.5]} 5. Nc3 {[%clk 0:03:02.3]}
5... d6 {[%clk 0:03:02.9]} 6. Bg5 {[%clk 0:02:51.1]} 6... Bd7 {[%clk 0:03:02.8]}
7. Qd2 {[%clk 0:02:28.7]} 7... Rc8 {[%clk 0:03:02]} 8. f4 {[%clk 0:02:25.9]}
8... Qa5 {[%clk 0:02:57.8]} 9. Nb3 {[%clk 0:02:15.1]} 9... Qb6 {[%clk
0:02:50.5]} 10. O-O-O {[%clk 0:02:07.8]} 10... Ng4 {[%clk 0:02:40.3]} 11. Nd5
{[%clk 0:01:57.6]} 11... Qf2 {[%clk 0:02:36.3]} 12. Be2 {[%clk 0:01:40.7]} 12...
h6 {[%clk 0:02:31.2]} 13. Rhf1 {[%clk 0:00:59.4]} 13... Qxg2 {[%clk 0:02:28.4]}
14. Rg1 {[%clk 0:00:53.4]} 14... Qh3 {[%clk 0:02:25.4]} 15. Nc5 {[%clk
0:00:19.9]} 15... hxg5 {[%clk 0:02:19.2]} 16. Nxd7 {[%clk 0:00:19.1]} 16... Nxh2
{[%clk 0:02:08.7]} 17. Nxf8 {[%clk 0:00:18.2]} 17... Kxf8 {[%clk 0:02:06.1]} 18.
Rxg5 {[%clk 0:00:18.2]} 18... Nf3 {[%clk 0:02:01.5]} 19. Bxf3 {[%clk 0:00:14.6]}
19... Qxf3 {[%clk 0:02:02.4]} 20. Rdg1 {[%clk 0:00:13.6]} 20... Qxe4 {[%clk
0:01:59.2]} 21. Rxg7 {[%clk 0:00:12.2]} 21... Nd4 {[%clk 0:01:54.1]} 22. Nc3
{[%clk 0:00:12.3]} 22... Rxc3 {[%clk 0:01:47.8]} 23. bxc3 {[%clk 0:00:11.7]}
23... Nf3 {[%clk 0:01:43.2]} 24. Qg2 {[%clk 0:00:09.3]} 24... Qxf4+ {[%clk
0:01:35.5]} 25. Kb2 {[%clk 0:00:07.6]} 25... Nxg1 {[%clk 0:01:31.8]} 26. Qxg1
{[%clk 0:00:07.9]} 26... Qc4 {[%clk 0:01:27.1]} 27. Rg4 {[%clk 0:00:06.8]} 27...
Qe2 {[%clk 0:01:21.9]} 28. Qd4 {[%clk 0:00:05.4]} 28... Qb5+ {[%clk 0:01:17.2]}
29. Kc1 {[%clk 0:00:03.5]} 29... Rh1+ {[%clk 0:01:10.7]} 30. Kd2 {[%clk
0:00:03.6]} 30... Qh5 {[%clk 0:01:03.5]} 31. Qg7+ {[%clk 0:00:02.3]} 31... Ke8
{[%clk 0:01:01]} 32. c4 {[%clk 0:00:02.7]} 32... Qc5 {[%clk 0:00:52.5]} 33. Qg8+
{[%clk 0:00:02.3]} 33... Kd7 {[%clk 0:00:49.7]} 34. Qxf7 {[%clk 0:00:03.2]}
34... Qb4+ {[%clk 0:00:39]} 35. c3 {[%clk 0:00:02.3]} 35... Rh2+ {[%clk
0:00:38]} 36. Kd3 {[%clk 0:00:02.1]} 36... Qb1+ {[%clk 0:00:37.4]} 37. Ke3
{[%clk 0:00:02.5]} 37... Qe1+ {[%clk 0:00:36.2]} 38. Kd4 {[%clk 0:00:02.1]}
38... Rd2# {[%clk 0:00:35.7]} 0-1

[Event "*** SCC Grand Prix: Titled Tuesday Blitz"]
[Site "Chess.com"]
[Date "2020.09.08"]
[Round "4"]
[White "lider34"]
[Black "nitpicker"]
[Result "1-0"]
[WhiteElo "2402"]
[BlackElo "2237"]
[TimeControl "180+1"]
[EndTime "10:39:35 PDT"]
[Termination "lider34 won on time"]

1. e4 {[%clk 0:03:00.9]} 1... d5 {[%clk 0:03:00]} 2. exd5 {[%clk 0:02:59.9]}
2... Qxd5 {[%clk 0:03:00]} 3. Nc3 {[%clk 0:02:58.8]} 3... Qd8 {[%clk 0:02:59.8]}
4. d4 {[%clk 0:02:58.6]} 4... Nf6 {[%clk 0:02:59.6]} 5. Nf3 {[%clk 0:02:58.9]}
5... c6 {[%clk 0:02:59.2]} 6. Bc4 {[%clk 0:02:55.2]} 6... Bf5 {[%clk 0:02:58.7]}
7. Qe2 {[%clk 0:02:49.9]} 7... e6 {[%clk 0:02:54.9]} 8. Ne5 {[%clk 0:02:43.3]}
8... Be7 {[%clk 0:02:51.3]} 9. Be3 {[%clk 0:02:39.8]} 9... Nbd7 {[%clk 0:02:46]}
10. f4 {[%clk 0:02:32.8]} 10... Nxe5 {[%clk 0:02:25.1]} 11. dxe5 {[%clk
0:02:30.4]} 11... Nd5 {[%clk 0:02:25.3]} 12. Nxd5 {[%clk 0:02:26]} 12... cxd5
{[%clk 0:02:17.8]} 13. Bb5+ {[%clk 0:02:24.7]} 13... Kf8 {[%clk 0:02:18.4]} 14.
O-O-O {[%clk 0:02:23.1]} 14... Qa5 {[%clk 0:02:13.6]} 15. Kb1 {[%clk 0:02:22]}
15... Rc8 {[%clk 0:02:10.3]} 16. Bd3 {[%clk 0:02:21.2]} 16... Bxd3 {[%clk
0:02:06.4]} 17. Qxd3 {[%clk 0:02:17]} 17... h5 {[%clk 0:01:34.7]} 18. f5 {[%clk
0:02:14.8]} 18... exf5 {[%clk 0:01:03.7]} 19. Qxf5 {[%clk 0:02:11]} 19... Rc6
{[%clk 0:00:53.4]} 20. Rhf1 {[%clk 0:02:09.9]} 20... f6 {[%clk 0:00:47.7]} 21.
exf6 {[%clk 0:02:02.9]} 21... Rxf6 {[%clk 0:00:46.9]} 22. Qc8+ {[%clk
0:01:55.8]} 22... Qd8 {[%clk 0:00:45.6]} 23. Qxb7 {[%clk 0:01:49.5]} 23... Rxf1
{[%clk 0:00:35]} 24. Rxf1+ {[%clk 0:01:48.1]} 24... Bf6 {[%clk 0:00:35]} 25. Bg5
{[%clk 0:01:33.2]} 25... Kg8 {[%clk 0:00:29.8]} 26. Bxf6 {[%clk 0:01:31.7]}
26... gxf6 {[%clk 0:00:30]} 27. Rd1 {[%clk 0:01:20.9]} 27... d4 {[%clk
0:00:25.9]} 28. Qxa7 {[%clk 0:01:17.8]} 28... Rh7 {[%clk 0:00:23.5]} 29. Qxd4
{[%clk 0:01:16.9]} 29... Qxd4 {[%clk 0:00:18.4]} 30. Rxd4 {[%clk 0:01:16.3]}
30... Re7 {[%clk 0:00:19.3]} 31. Rd1 {[%clk 0:01:08.8]} 31... Re2 {[%clk
0:00:18.7]} 32. Rg1 {[%clk 0:01:08.2]} 32... h4 {[%clk 0:00:18.7]} 33. a4 {[%clk
0:01:06.9]} 33... Kf7 {[%clk 0:00:17.9]} 34. b4 {[%clk 0:01:06.2]} 34... Ke6
{[%clk 0:00:18]} 35. Kb2 {[%clk 0:01:05.8]} 35... Kd5 {[%clk 0:00:18.7]} 36. Kb3
{[%clk 0:01:05.6]} 36... f5 {[%clk 0:00:16.3]} 37. a5 {[%clk 0:01:03.5]} 37...
f4 {[%clk 0:00:16.5]} 38. c4+ {[%clk 0:00:56.7]} 38... Kc6 {[%clk 0:00:13]} 39.
Rf1 {[%clk 0:00:49]} 39... Re3+ {[%clk 0:00:08.9]} 40. Ka4 {[%clk 0:00:47.1]}
40... Re4 {[%clk 0:00:07.3]} 41. c5 {[%clk 0:00:45.5]} 1-0

[Event "*** SCC Grand Prix: Titled Tuesday Blitz"]
[Site "Chess.com"]
[Date "2020.09.08"]
[Round "4"]
[White "Gloomy_Wanderer"]
[Black "jefferyx"]
[Result "0-1"]
[WhiteElo "2737"]
[BlackElo "2923"]
[TimeControl "180+1"]
[EndTime "10:39:37 PDT"]
[Termination "jefferyx won by resignation"]

1. d4 {[%clk 0:03:00.9]} 1... Nf6 {[%clk 0:02:53.8]} 2. Nf3 {[%clk 0:03:00.7]}
2... d5 {[%clk 0:02:51.6]} 3. c4 {[%clk 0:03:00.6]} 3... dxc4 {[%clk 0:02:52.5]}
4. Qa4+ {[%clk 0:03:00.2]} 4... Nbd7 {[%clk 0:02:49.5]} 5. Nc3 {[%clk
0:03:00.1]} 5... g6 {[%clk 0:02:46.5]} 6. e4 {[%clk 0:02:59.4]} 6... c6 {[%clk
0:02:44.8]} 7. Qxc4 {[%clk 0:02:55.4]} 7... Nb6 {[%clk 0:02:39.7]} 8. Qb3 {[%clk
0:02:50.6]} 8... Bg7 {[%clk 0:02:40.6]} 9. h3 {[%clk 0:02:49.4]} 9... Be6 {[%clk
0:02:38.5]} 10. Qc2 {[%clk 0:02:49.2]} 10... O-O {[%clk 0:02:38.9]} 11. Be2
{[%clk 0:02:49.2]} 11... Bc4 {[%clk 0:02:16.6]} 12. O-O {[%clk 0:02:45.6]} 12...
Nfd7 {[%clk 0:02:16.7]} 13. Bf4 {[%clk 0:02:33.7]} 13... Rc8 {[%clk 0:02:07.7]}
14. Rfd1 {[%clk 0:02:15.2]} 14... Qe8 {[%clk 0:02:08]} 15. Bxc4 {[%clk
0:02:05.7]} 15... Nxc4 {[%clk 0:02:08.9]} 16. Qb3 {[%clk 0:02:06.2]} 16... b5
{[%clk 0:01:49.7]} 17. a4 {[%clk 0:01:48.4]} 17... a6 {[%clk 0:01:50.1]} 18.
axb5 {[%clk 0:01:44]} 18... axb5 {[%clk 0:01:51]} 19. e5 {[%clk 0:01:33.3]}
19... Ra8 {[%clk 0:01:50.8]} 20. Rac1 {[%clk 0:01:09.9]} 20... Ndb6 {[%clk
0:01:50.8]} 21. d5 {[%clk 0:01:07.5]} 21... Na4 {[%clk 0:01:00.2]} 22. dxc6
{[%clk 0:00:40.4]} 22... Qxc6 {[%clk 0:01:01.1]} 23. Qxb5 {[%clk 0:00:20.6]}
23... Qxb5 {[%clk 0:00:50.4]} 24. Nxb5 {[%clk 0:00:21.5]} 24... Ra5 {[%clk
0:00:47.9]} 25. b3 {[%clk 0:00:17.7]} 25... Rxb5 {[%clk 0:00:42.6]} 26. bxc4
{[%clk 0:00:17.6]} 26... Rb4 {[%clk 0:00:36.4]} 27. Nd4 {[%clk 0:00:16]} 27...
Rc8 {[%clk 0:00:35.7]} 28. Nf3 {[%clk 0:00:12.4]} 28... h6 {[%clk 0:00:34.8]}
29. Rd7 {[%clk 0:00:12]} 29... Nc5 {[%clk 0:00:32.8]} 30. Rxe7 {[%clk
0:00:11.7]} 30... Bf8 {[%clk 0:00:30]} 31. Ra7 {[%clk 0:00:09.7]} 31... Nd3
{[%clk 0:00:30]} 32. e6 {[%clk 0:00:06]} 32... Nxf4 {[%clk 0:00:22.8]} 33. exf7+
{[%clk 0:00:04.1]} 33... Kg7 {[%clk 0:00:23.4]} 34. Ne5 {[%clk 0:00:04]} 34...
Ne2+ {[%clk 0:00:23.1]} 0-1